bitfinex/quotes_ETHUSD_20250413
["timestamp","ask_amount","ask_price","bid_price","bid_amount"]
[1744530475002,0.26447911,1613.6,1613.5,6.19758]
[1744530475185,0.8229,1613.8,1613.5,8.033144]
[1744530475386,0.26447911,1613.6,1613.5,8.033144]
[1744530475622,0.8229,1613.8,1613.5,8.033144]
[1744530475623,6.97729,1613.9,1613.5,14.230684]
[1744530475821,0.26447911,1613.6,1613.5,14.230684]
[1744530476436,0.781,1613.9,1613.7,6.19671]
[1744530477328,6.98728,1614.0,1613.7,7.515127]
[1744530477830,0.7913,1614.0,1613.7,7.515127]
[1744530479718,0.7913,1614.0,1613.7,13.711857]
[1744530480229,0.7913,1614.2,1613.7,9.59122704]
[1744530480394,0.02,1614.4,1613.7,1.318417]
[1744530480395,0.7913,1613.9,1613.7,1.318417]
[1744530480732,0.7913,1613.8,1613.7,1.318417]
[1744530480890,6.98794,1613.8,1613.5,14.46318313]
[1744530481419,0.7913,1613.8,1613.5,14.46309313]
[1744530481587,6.98788,1613.8,1613.5,14.46309313]
[1744530482003,6.98788,1613.8,1613.5,13.993144]
[1744530482496,6.98788,1613.8,1613.5,7.795564]
[1744530482721,6.98788,1613.8,1613.6,0.7795564]
[1744530483029,13.18465,1613.8,1613.5,1.835564]
[1744530483239,6.95186,1613.7,1613.4,6.0699848]
[1744530483993,6.95186,1613.7,1613.4,6.19808]
[1744530483994,0.26655022,1613.6,1613.4,6.19808]
[1744530484189,0.26655022,1613.6,1613.5,6.1977]
[1744530484388,0.7548,1613.7,1613.5,6.1977]
[1744530484389,0.7548,1613.7,1613.5,7.437278]
[1744530484848,0.26655022,1613.6,1613.5,7.437278]
[1744530485346,0.7548,1613.7,1613.5,1.239578]
[1744530485833,0.26655022,1613.6,1613.5,1.239578]
[1744530486648,0.7548,1613.7,1613.5,1.239578]
[1744530486812,0.26655022,1613.6,1613.5,1.239578]
[1744530487241,0.7548,1613.7,1613.5,1.239578]
[1744530487441,0.26655022,1613.6,1613.5,1.239578]
[1744530487752,0.7548,1613.7,1613.5,1.239578]
[1744530487953,0.26655022,1613.6,1613.5,1.239578]
[1744530488413,6.95186,1613.7,1613.5,1.239578]
[1744530488613,0.26655022,1613.6,1613.5,1.239578]
[1744530489355,0.7548,1613.7,1613.5,1.239578]
[1744530489650,0.26655022,1613.6,1613.5,7.437228]
[1744530489845,0.26655022,1613.6,1613.5,1.239578]
[1744530490037,0.7548,1613.7,1613.5,1.239578]
[1744530490213,0.26655022,1613.6,1613.5,1.239578]
[1744530490613,0.7548,1613.7,1613.5,1.239578]
[1744530490850,0.26655022,1613.6,1613.4,6.19796]
[1744530491219,0.7548,1613.7,1613.4,6.19796]
[1744530491421,0.26647533,1613.5,1613.4,6.19796]
[1744530491620,0.7548,1613.7,1613.4,6.19796]
[1744530491820,0.26647533,1613.5,1613.4,6.19796]
[1744530492150,0.26647533,1613.5,1613.4,7.4990196]
[1744530492314,0.7548,1613.7,1613.4,7.4990196]
[1744530492516,0.26525581,1613.6,1613.4,7.4990196]
[1744530492827,0.7548,1613.7,1613.4,7.4990196]
[1744530493352,0.26525581,1613.6,1613.4,7.4990196]
[1744530493553,0.26525581,1613.6,1613.5,0.74990196]
[1744530493754,0.7548,1613.7,1613.5,0.74990196]
[1744530493957,0.26525581,1613.6,1613.5,0.74990196]
[1744530494349,0.7548,1613.7,1613.5,0.74990196]
[1744530494853,0.26525581,1613.6,1613.5,0.74990196]
[1744530495557,0.7548,1613.7,1613.5,0.74990196]
[1744530495757,0.26525581,1613.6,1613.5,0.74990196]
[1744530496123,0.7548,1613.7,1613.5,0.74990196]
[1744530496324,0.26525581,1613.6,1613.5,0.74990196]
[1744530496726,0.7548,1613.7,1613.5,0.74990196]
[1744530496922,0.26525581,1613.6,1613.5,6.94759196]
[1744530497149,0.7983,1613.9,1613.5,1.55440196]
[1744530497462,0.7983,1613.9,1613.6,6.19718]
[1744530497759,6.19608,1614.0,1613.7,0.619718]
[1744530497945,6.19608,1614.0,1613.6,12.39432]
[1744530498960,0.26548044,1613.9,1613.6,12.39432]
[1744530499258,0.26548044,1613.9,1613.6,12.39433]
[1744530499443,0.26548044,1613.9,1613.7,6.19672]
[1744530499755,6.19505,1614.2,1613.8,13.1974]
[1744530499756,6.99335,1614.2,1613.8,13.1974]
[1744530499958,6.99335,1614.2,1613.8,14.51714]
[1744530502355,6.99335,1614.2,1613.8,8.32059]
[1744530503157,6.99335,1614.2,1613.8,14.51695]
[1744530504566,6.99335,1614.2,1613.9,6.19612]
[1744530505262,6.19542,1614.1,1613.8,7.51609]
[1744530505468,6.19542,1614.1,1613.9,0.751609]
[1744530506367,6.19578,1614.0,1613.8,1.31974]
[1744530508270,12.39108,1614.1,1613.8,1.31974]
[1744530508480,6.95838,1614.0,1613.6,18.2372648]
[1744530508771,6.95838,1614.0,1613.1,13.55895622]
[1744530508772,6.19839,1613.4,1613.1,13.55895622]
[1744530508973,6.19839,1613.4,1613.1,6.69037142]
[1744530508974,0.7625,1613.3,1613.1,6.69037142]
[1744530509148,1.02914907,1613.3,1613.1,6.69037142]
[1744530509358,7.22762907,1613.3,1613.2,0.66903714]
[1744530509675,7.22762907,1613.3,1613.0,6.69037142]
[1744530509676,13.42635907,1613.3,1613.0,6.69037142]
[1744530510055,13.42635907,1613.3,1613.0,8.89319666]
[1744530510239,13.42635907,1613.3,1613.0,6.69037142]
[1744530511282,6.19886,1613.2,1613.0,6.69037142]
[1744530511580,0.26649921,1613.1,1613.0,6.69037142]
[1744530511781,0.26649921,1613.1,1613.0,8.84657666]
[1744530511979,6.19924,1613.1,1612.7,11.67223099]
[1744530512290,12.66524921,1613.1,1612.8,3.0]
[1744530512849,6.46573921,1613.1,1612.8,3.0]
[1744530517187,0.26649921,1613.1,1612.8,9.20033]
[1744530517481,0.26649921,1613.1,1612.9,0.920033]
[1744530517655,6.19925,1613.1,1612.9,0.920033]
[1744530517853,0.25651867,1613.0,1612.9,0.920033]
[1744530518865,0.25651867,1613.0,1612.7,8.67240099]
[1744530519068,0.25651867,1613.0,1612.7,14.87303099]
[1744530521002,0.25651867,1613.0,1612.8,6.20033]
[1744530521689,0.25651867,1613.0,1612.9,6.20001]
[1744530521855,0.25651867,1613.0,1612.9,6.97561]
[1744530522051,0.7625,1613.3,1613.0,12.39906]
[1744530522260,0.7625,1613.3,1613.0,6.19947]
[1744530522455,0.7625,1613.3,1613.0,12.39896]
[1744530522662,0.7625,1613.3,1613.0,6.19947]
[1744530522961,6.96103,1613.3,1613.0,6.19947]
[1744530523162,6.96103,1613.3,1613.1,0.619947]
[1744530524563,6.96103,1613.3,1612.9,14.71340652]
[1744530525193,6.96103,1613.3,1613.0,6.19955]
[1744530525897,0.7625,1613.3,1612.7,13.0462248]
[1744530526101,7.00263,1612.9,1612.6,12.1611]
[1744530526255,7.00263,1612.9,1612.6,8.173822]
[1744530526455,6.20044,1612.8,1612.6,8.173822]
[1744530527382,13.20286,1612.9,1612.6,8.173822]
[1744530527785,0.25533237,1612.8,1612.6,8.173822]
[1744530528393,0.2552574,1612.7,1612.6,8.173822]
[1744530528768,6.20041,1612.8,1612.6,8.173822]
[1744530528961,0.2552574,1612.7,1612.6,8.173822]
[1744530531102,6.4560374,1612.7,1612.4,6.20191]
[1744530531298,6.2012,1612.6,1612.3,12.93577]
[1744530531503,12.40332,1612.5,1612.1,6.97454]
[1744530531669,6.45665743,1612.5,1612.2,6.659454]
[1744530531864,6.45665743,1612.5,1612.2,12.862044]
[1744530532194,7.01941,1612.6,1612.2,12.861954]
[1744530532601,0.25219166,1612.5,1612.2,12.861954]
[1744530533303,6.45390166,1612.5,1612.2,6.659454]
[1744530533467,6.45390166,1612.5,1612.3,0.6659454]
[1744530534167,0.25219166,1612.5,1612.3,0.6659454]
[1744530534570,0.25219166,1612.5,1612.4,6.99993]
[1744530534772,10.02544,1613.0,1612.6,6.20106]
[1744530534977,10.02544,1613.0,1612.7,6.20076]
[1744530534978,0.8258,1613.0,1612.7,6.20076]
[1744530535211,0.23079965,1612.9,1612.7,13.819596]
[1744530535410,0.23079965,1612.9,1612.8,6.20039]
[1744530536214,0.23079965,1612.9,1612.7,0.620076]
[1744530536215,7.25351073,1612.9,1612.7,0.620076]
[1744530536415,7.25351073,1612.9,1612.6,6.20115]
[1744530536715,1.05336073,1612.9,1612.6,6.20115]
[1744530537218,1.05336073,1612.9,1612.6,12.40211]
[1744530537578,1.05336073,1612.9,1612.7,6.20074]
[1744530537779,0.22756073,1612.9,1612.7,6.20074]
[1744530537980,0.22756073,1612.9,1612.8,0.620074]
[1744530538222,19.13595,1613.1,1612.8,0.620074]
[1744530538390,0.22756073,1612.9,1612.7,6.20074]
[1744530538579,19.13595,1613.1,1612.7,6.20074]
[1744530538916,0.22748577,1612.8,1612.7,6.20074]
[1744530539525,6.97449,1613.1,1612.7,6.20074]
[1744530539698,0.22748577,1612.8,1612.7,6.20074]
[1744530539899,6.97449,1613.1,1612.7,7.44091]
[1744530540114,0.22748577,1612.8,1612.7,7.44091]
[1744530540318,6.97449,1613.1,1612.7,7.44091]
[1744530540319,6.97449,1613.1,1612.7,7.44077]
[1744530540480,0.22748577,1612.8,1612.7,6.2006]
[1744530540684,6.97449,1613.1,1612.8,6.20038]
[1744530542710,6.97449,1613.1,1612.7,6.2006]
[1744530542910,6.19983,1613.0,1612.6,12.40224]
[1744530543085,6.19983,1613.0,1612.6,6.20112]
[1744530543287,6.19983,1613.0,1612.7,0.620112]
[1744530544026,0.22950893,1612.9,1612.7,0.620112]
[1744530544598,0.22950893,1612.9,1612.7,6.820822]
[1744530548789,0.22950893,1612.9,1612.7,0.620112]
[1744530548985,0.22950893,1612.9,1612.5,13.42922893]
[1744530548986,0.7737,1612.8,1612.5,12.96149]
[1744530549223,6.20078,1612.7,1612.4,12.2718948]
[1744530549423,6.43202225,1612.7,1612.4,12.2718948]
[1744530549788,0.7737,1612.5,1612.3,0.6659454]
[1744530550310,0.23017315,1612.4,1612.3,0.6659454]
[1744530551228,0.7737,1612.5,1612.3,0.6659454]
[1744530551925,0.7737,1612.5,1612.4,6.20193]
[1744530552798,0.7737,1612.5,1612.3,0.6659454]
[1744530553124,0.7601,1612.6,1612.3,6.8679354]
[1744530553326,0.7601,1612.6,1612.4,0.68679354]
[1744530553626,0.7601,1612.6,1612.4,6.88856354]
[1744530553826,6.96049,1612.9,1612.5,6.20136]
[1744530554031,6.20044,1612.8,1612.5,6.20136]
[1744530554229,6.20044,1612.8,1612.6,0.620136]
[1744530554418,6.20044,1612.8,1612.5,6.20136]
[1744530554726,6.20044,1612.8,1612.4,6.88861354]
[1744530554929,6.96098,1612.7,1612.4,6.88861354]
[1744530555516,0.7601,1612.8,1612.7,6.20078]
[1744530555730,12.92197,1613.0,1612.6,6.20105]
[1744530555920,19.12184,1613.0,1612.7,0.620105]
[1744530556108,13.15984,1613.0,1612.7,0.620105]
[1744530557018,6.95997,1613.0,1612.7,0.620105]
[1744530557220,0.7601,1613.0,1612.7,6.820735]
[1744530557734,6.95973,1613.0,1612.7,6.820735]
[1744530557940,6.95973,1613.0,1612.8,0.6820735]
[1744530558110,6.95973,1613.0,1612.7,6.820735]
[1744530558936,0.21052632,1612.9,1612.7,6.820735]
[1744530559598,6.20039,1612.8,1612.5,7.0058]
[1744530559802,0.21052632,1612.9,1612.6,6.20093]
[1744530560049,0.21187003,1612.7,1612.6,12.40189]
[1744530560233,6.95977,1613.0,1612.6,12.40189]
[1744530560413,6.19967,1613.0,1612.7,1.240189]
[1744530560942,6.19967,1613.0,1612.7,7.440909]
[1744530561237,6.98658,1613.1,1612.8,6.20037]
[1744530561413,13.18604,1613.1,1612.7,7.440909]
[1744530562233,12.39963,1613.0,1612.6,6.20109]
[1744530562401,0.8244,1612.9,1612.6,6.20109]
[1744530562600,0.8244,1612.9,1612.5,7.00584]
[1744530562601,7.02443,1612.9,1612.5,7.00584]
[1744530562938,6.20039,1612.8,1612.5,6.20154]
[1744530563141,6.20039,1612.8,1612.6,0.620154]
[1744530563435,7.02406,1613.0,1612.6,6.821304]
[1744530563642,0.8244,1613.0,1612.7,6.99383]
[1744530564202,0.8244,1613.0,1612.8,6.20039]
[1744530567510,0.8244,1613.0,1612.7,0.7932]
[1744530567838,7.02426,1613.0,1612.6,13.022224]
[1744530568041,7.02426,1613.0,1612.7,1.3022224]
[1744530568943,0.7879,1613.1,1612.8,6.20039]
[1744530569240,0.7879,1613.1,1612.9,6.19983]
[1744530573750,0.19537075,1613.0,1612.9,6.19983]
[1744530574350,0.19537075,1613.0,1612.8,6.96119]
[1744530574552,0.19537075,1613.0,1612.8,8.40760224]
[1744530575245,0.19537075,1613.0,1612.8,14.60782224]
[1744530577664,0.7695,1612.9,1612.7,7.5029024]
[1744530577952,0.96479579,1612.9,1612.5,12.62421696]
[1744530578156,0.7695,1612.7,1612.5,5.963]
[1744530578324,0.7695,1612.7,1612.4,6.88857354]
[1744530579044,0.19533058,1612.6,1612.4,6.88857354]
[1744530579353,0.19533058,1612.6,1612.5,0.68885735]
[1744530579554,0.19533058,1612.6,1612.5,6.89040735]
[1744530579761,0.19533058,1612.6,1612.5,12.84613259]
[1744530580049,0.7695,1613.1,1612.9,12.39968]
[1744530580251,3.3,1613.0,1612.9,12.39968]
[1744530580839,5.963,1613.3,1613.1,6.1992]
[1744530581086,5.963,1613.3,1612.9,0.93057416]
[1744530581087,12.9311,1613.3,1612.9,6.19988]
[1744530581252,6.7325,1613.3,1612.9,6.19981]
[1744530581462,3.3,1613.2,1613.0,6.1996]
[1744530582157,3.3,1613.2,1613.0,12.39903]
[1744530582322,3.3,1613.2,1613.1,6.19924]
[1744530583257,3.3,1613.2,1613.0,7.439333]
[1744530583458,3.3,1613.2,1612.9,7.01737]
[1744530583962,3.3,1613.2,1612.9,13.21734]
[1744530584159,3.3,1613.2,1613.0,6.19962]
[1744530585559,3.3,1613.2,1613.0,7.521319]
[1744530585727,3.3,1613.2,1613.0,13.720759]
[1744530586862,3.3,1613.2,1613.1,6.19924]
[1744530587032,3.3,1613.2,1613.1,7.01664]
[1744530587229,0.7831,1613.8,1613.5,6.19757]
[1744530587435,0.7831,1613.8,1613.7,6.19693]
[1744530587769,3.3,1613.8,1613.7,12.39373]
[1744530587940,3.3,1613.8,1613.5,7.518716]
[1744530588141,0.7831,1613.7,1613.5,7.518716]
[1744530588341,3.3,1613.8,1613.7,6.19693]
[1744530588870,3.41809969,1613.8,1613.7,6.19693]
[1744530589070,0.7831,1614.6,1614.3,6.19463]
[1744530589369,0.7831,1614.6,1614.2,6.19475]
[1744530589666,3.3,1614.5,1614.3,6.19463]
[1744530590445,3.3,1614.5,1614.3,6.65563575]
[1744530592742,4.0831,1614.5,1614.3,6.65563575]
[1744530594158,0.7831,1614.5,1614.3,6.65563575]
[1744530594768,3.32,1614.4,1614.3,6.19463]
[1744530594972,3.32,1614.4,1614.3,7.01203]
[1744530594973,0.02,1614.4,1614.3,7.01203]
[1744530597347,0.02,1614.4,1614.3,7.48358382]
[1744530605405,0.02,1614.4,1614.3,10.48358382]
[1744530608955,0.02,1614.4,1614.3,0.47155382]
[1744530609155,0.02,1614.4,1614.2,18.4596248]
[1744530609476,3.3,1614.3,1614.2,14.19191728]
[1744530610237,3.3,1614.3,1614.2,8.12193248]
[1744530611020,3.3,1614.3,1614.2,1.92718248]
[1744530611222,3.3,1614.3,1614.0,12.39131]
[1744530611385,3.3,1614.3,1614.1,6.19536]
[1744530612385,3.3,1614.3,1614.1,6.66699209]
[1744530613122,3.3,1614.3,1613.9,17.46891004]
[1744530613123,0.8165,1614.2,1613.9,17.46891004]
[1744530613290,0.8165,1614.2,1614.0,1.5510233]
[1744530613493,7.01163,1614.2,1614.0,1.5510233]
[1744530613678,10.31163,1614.2,1614.0,1.5510233]
[1744530613882,10.31163,1614.2,1613.9,12.22302]
[1744530614131,7.01163,1614.2,1613.9,12.22302]
[1744530614488,6.19547,1614.1,1613.9,0.45760759]
[1744530614696,9.49547,1614.1,1613.8,6.19648]
[1744530614899,9.49547,1614.1,1613.7,19.7030298]
[1744530615228,9.49547,1614.1,1613.8,1.83888051]
[1744530615730,15.69111,1614.1,1613.8,1.83888051]
[1744530616022,0.8165,1614.0,1613.8,1.83888051]
[1744530616630,3.3,1613.9,1613.8,1.83888051]
[1744530617427,9.49631,1613.9,1613.7,1.239395]
[1744530617728,0.8165,1613.8,1613.6,8.22982524]
[1744530618032,7.01382,1613.6,1613.2,6.027]
[1744530618190,13.21147,1613.6,1613.2,12.22571]
[1744530618384,8.99785,1613.5,1613.2,6.027]
[1744530618603,8.99785,1613.5,1613.3,0.6027]
[1744530618804,8.99785,1613.5,1613.2,6.027]
[1744530619289,0.8165,1613.4,1613.2,6.027]
[1744530619629,7.0146,1613.4,1613.1,55.79711941]
[1744530619796,7.0146,1613.4,1613.1,61.99631941]
[1744530620000,2.8,1613.3,1613.1,61.99631941]
[1744530620204,2.8,1613.3,1613.2,6.1449596]
[1744530620414,2.8,1613.3,1613.1,8.87031941]
[1744530626446,2.8,1613.3,1613.1,15.06940941]
[1744530626732,2.8,1613.3,1613.1,8.87020941]
[1744530631335,0.26669882,1613.2,1613.1,8.87020941]
[1744530631514,0.8165,1613.4,1613.1,8.87020941]
[1744530631715,0.26442442,1613.3,1613.1,11.11206125]
[1744530631910,2.8,1613.2,1613.1,11.11206125]
[1744530632139,10.01690954,1613.2,1613.0,1.321699]
[1744530632435,10.01690954,1613.2,1612.8,18.3002148]
[1744530633026,10.01690954,1613.2,1612.9,6.19997]
[1744530633339,9.75255,1613.2,1612.9,6.19997]
[1744530633542,0.26370922,1613.1,1612.9,6.19997]
[1744530633839,3.5537,1613.2,1613.0,0.619997]
[1744530636749,2.8,1613.2,1613.1,6.19924]
[1744530636930,6.19784,1613.5,1613.1,6.19924]
[1744530636931,0.7941,1613.6,1613.3,6.19811]
[1744530637105,0.7941,1613.6,1613.3,12.3964]
[1744530637308,2.8,1613.5,1613.3,13.1515]
[1744530637620,2.8,1613.5,1613.4,1.31515]
[1744530638252,8.99772,1613.5,1613.2,6.19879]
[1744530639130,8.99772,1613.5,1613.3,6.19842]
[1744530639131,2.8,1613.5,1613.3,6.19842]
[1744530640456,2.8,1613.5,1613.1,6.95428]
[1744530640635,2.8,1613.5,1613.2,6.1986]
[1744530640945,0.24127243,1613.4,1613.2,12.39728]
[1744530641241,0.24127243,1613.4,1613.3,1.1481847]
[1744530641551,2.8,1613.4,1613.3,1.1481847]
[1744530641724,3.04127243,1613.4,1613.3,1.1481847]
[1744530644209,3.04127243,1613.4,1613.3,7.3466547]
[1744530644713,0.24127243,1613.4,1613.3,7.3466547]
[1744530644954,0.7941,1613.6,1613.3,13.5451247]
[1744530645157,2.8,1613.4,1613.3,13.5451247]
[1744530645310,3.04146773,1613.4,1613.3,13.5451247]
[1744530645515,0.24146773,1613.4,1613.3,13.5451247]
[1744530645822,0.7941,1613.6,1613.3,13.5451247]
[1744530646009,0.24146773,1613.4,1613.3,13.5451247]
[1744530646411,0.24146773,1613.4,1613.3,1.1481847]
[1744530647573,0.24146773,1613.4,1613.3,7.3466547]
[1744530648238,9.79148,1613.6,1613.3,7.3466547]
[1744530648562,9.79148,1613.6,1613.3,6.19847]
[1744530648878,6.4392326,1613.5,1613.2,6.19866]
[1744530649075,6.4392326,1613.5,1613.1,19.13352]
[1744530649382,3.5547,1613.4,1613.1,18.37828]
[1744530649580,0.24290031,1613.3,1613.1,18.37828]
[1744530649785,3.5547,1613.4,1613.2,1.837828]
[1744530650272,2.8,1613.4,1613.2,8.036568]
[1744530651199,2.8,1613.4,1613.2,6.19874]
[1744530651378,2.8,1613.4,1613.2,12.3974]
[1744530651579,2.8,1613.4,1613.3,6.19847]
[1744530651778,6.19696,1613.7,1613.3,6.19847]
[1744530651779,7.01336,1613.7,1613.3,6.19847]
[1744530651966,7.01336,1613.7,1613.4,6.19805]
[1744530652482,2.8,1613.6,1613.4,6.19805]
[1744530654177,2.8,1613.6,1613.3,8.253683]
[1744530654878,2.8,1613.6,1613.3,7.438183]
[1744530655099,8.99745,1613.6,1613.3,7.438183]
[1744530657587,2.8,1613.6,1613.4,0.7438183]
[1744530661402,0.8164,1613.5,1613.2,6.19871]
[1744530661703,0.8164,1613.5,1613.2,12.39739]
[1744530662207,16.01147,1613.6,1613.2,12.39736]
[1744530662514,16.01147,1613.6,1613.2,12.24238852]
[1744530663334,7.01453,1613.4,1613.1,3.0]
[1744530663998,0.24257483,1613.3,1613.1,3.0]
[1744530664315,7.01453,1613.4,1613.1,3.0]
[1744530664520,0.24257483,1613.3,1613.1,9.19924]
[1744530664822,7.01453,1613.4,1613.1,9.19924]
[1744530664994,0.24250994,1613.2,1613.1,9.19924]
[1744530665194,0.8164,1613.4,1613.1,17.60721518]
[1744530665598,0.24257483,1613.3,1613.1,9.19911]
[1744530665997,0.8164,1613.4,1612.9,6.65837316]
[1744530666189,0.8164,1613.1,1612.9,12.85817316]
[1744530667706,0.8164,1613.1,1612.9,12.85806316]
[1744530668393,0.7993,1613.4,1613.1,6.19924]
[1744530668603,0.7993,1613.4,1613.0,0.8327]
[1744530668604,0.7993,1613.4,1613.2,6.19883]
[1744530669640,3.5993,1613.6,1613.3,6.19824]
[1744530670786,3.5993,1613.6,1613.4,6.19808]
[1744530671887,3.5993,1613.6,1613.4,6.19789]
[1744530672087,2.8,1613.6,1613.4,6.19789]
[1744530672598,2.8,1613.6,1613.4,12.39579]
[1744530673301,2.8,1613.6,1613.4,6.19789]
[1744530674190,0.7502,1613.8,1613.5,0.7744]
[1744530674438,6.7122,1614.0,1613.7,6.19678]
[1744530674730,2.3,1613.9,1613.7,6.19678]
[1744530675228,2.3,1613.9,1613.6,8.40014524]
[1744530675426,8.49622,1613.9,1613.6,6.19732]
[1744530675634,0.7502,1613.8,1613.6,6.19732]
[1744530676193,2.3,1613.7,1613.6,6.19732]
[1744530678327,2.3,1613.7,1613.5,6.19764]
[1744530678636,8.49694,1613.7,1613.4,0.46008648]
[1744530678831,8.49694,1613.7,1613.3,18.4667648]
[1744530679128,8.49694,1613.7,1613.4,8.04459648]
[1744530679129,0.22352851,1613.6,1613.4,8.04459648]
[1744530679334,6.94679,1613.8,1613.4,6.19792]
[1744530679537,0.22359336,1613.7,1613.4,6.19792]
[1744530679829,2.3,1613.6,1613.4,6.19792]
[1744530680199,0.22346365,1613.5,1613.4,6.19792]
[1744530680399,0.22346365,1613.5,1613.4,6.6590882]
[1744530680626,2.3,1613.6,1613.4,7.94484402]
[1744530681425,2.3,1613.6,1613.4,0.4611682]
[1744530681611,3.1157,1613.6,1613.3,6.19847]
[1744530681932,0.22346365,1613.5,1613.3,6.19847]
[1744530682294,0.22346365,1613.5,1613.2,15.89948304]
[1744530682502,0.22346365,1613.5,1613.2,22.09821304]
[1744530682912,0.22346365,1613.5,1613.3,6.19846]
[1744530684241,2.3,1613.4,1613.3,6.19846]
[1744530684612,2.52339878,1613.4,1613.3,6.19846]
[1744530686566,2.52339878,1613.4,1613.2,2.82270824]
[1744530686861,2.52339878,1613.4,1613.2,6.19877]
[1744530687058,2.52339878,1613.4,1613.1,12.2689648]
[1744530687260,2.3,1613.4,1613.1,12.2689648]
[1744530687466,0.22333391,1613.3,1613.1,21.5127118]
[1744530687763,6.19784,1613.5,1613.2,6.19885]
[1744530688057,0.22339878,1613.4,1613.2,6.19885]
[1744530688275,0.22339878,1613.4,1613.3,6.19847]
[1744530688557,0.8157,1613.6,1613.3,13.21094]
[1744530688859,2.5227474,1613.5,1613.3,7.01247]
[1744530689237,2.5227474,1613.5,1613.3,6.19847]
[1744530694072,3.47632414,1613.5,1613.1,5.961]
[1744530694273,2.5227474,1613.5,1613.2,6.19868]
[1744530696777,2.5227474,1613.5,1613.2,12.39733]
[1744530697980,2.5227474,1613.5,1613.2,6.19865]
[1744530698480,8.7205474,1613.5,1613.2,6.19865]
[1744530699178,0.7508,1613.4,1613.2,6.19865]
[1744530699383,0.22261766,1613.3,1613.2,6.19865]
[1744530699587,0.7508,1613.4,1613.2,6.19865]
[1744530699746,0.22261766,1613.3,1613.2,6.19865]
[1744530699948,0.7508,1613.4,1613.2,6.19865]
[1744530700252,0.22261766,1613.3,1613.2,6.19865]
[1744530700580,0.7508,1613.4,1613.2,6.19865]
[1744530700783,0.22261766,1613.3,1613.2,6.19865]
[1744530701085,0.7508,1613.4,1613.2,6.19865]
[1744530701315,0.22261766,1613.3,1613.2,6.19865]
[1744530701583,0.7508,1613.4,1613.2,6.19865]
[1744530701785,0.22261766,1613.3,1613.2,6.19865]
[1744530701972,0.7508,1613.4,1613.2,6.19865]
[1744530702176,0.22261766,1613.3,1613.2,6.19865]
[1744530702348,0.7508,1613.4,1613.2,6.19865]
[1744530702549,0.22261766,1613.3,1613.2,6.19865]
[1744530702745,0.7508,1613.4,1613.2,6.19865]
[1744530702978,0.22261766,1613.3,1613.2,6.19865]
[1744530703289,0.7508,1613.4,1613.2,6.19865]
[1744530703450,0.22268283,1613.3,1613.2,6.19865]
[1744530703784,0.7508,1613.4,1613.2,6.19865]
[1744530703989,0.22268283,1613.3,1613.2,6.19865]
[1744530704192,0.7508,1613.4,1613.2,6.19865]
[1744530704386,0.22268283,1613.3,1613.2,6.19865]
[1744530704577,6.99958,1613.6,1613.3,6.19847]
[1744530704781,0.22281257,1613.5,1613.3,6.19847]
[1744530706193,0.22281257,1613.5,1613.2,6.97615]
[1744530706985,0.22281257,1613.5,1613.2,13.17484]
[1744530707389,0.22281257,1613.5,1613.3,6.19822]
[1744530707902,0.22281257,1613.5,1613.4,12.19351524]
[1744530708198,0.8052,1614.0,1613.6,6.19711]
[1744530708199,7.0011,1614.0,1613.6,6.19711]
[1744530708404,0.20458481,1613.9,1613.6,12.39422]
[1744530709502,0.20458481,1613.9,1613.6,6.19711]
[1744530710203,0.20458481,1613.9,1613.6,12.39426]
[1744530710380,0.20458481,1613.9,1613.6,13.633686]
[1744530711577,0.20458481,1613.9,1613.6,7.436536]
[1744530712185,0.20458481,1613.9,1613.6,14.442546]
[1744530712696,0.20458481,1613.9,1613.7,6.19689]
[1744530713001,0.20458481,1613.9,1613.7,12.39368]
[1744530713210,6.97915,1614.1,1613.8,1.239368]
[1744530713394,0.20647238,1614.0,1613.7,6.19679]
[1744530713908,6.40239238,1614.0,1613.6,10.44842124]
[1744530714202,6.40239238,1614.0,1613.6,16.64557124]
[1744530714505,6.40239238,1614.0,1613.7,6.19684]
[1744530715009,6.40239238,1614.0,1613.6,8.245476]
[1744530715309,13.81664924,1613.9,1613.5,12.96754]
[1744530715607,6.40293272,1613.8,1613.5,12.15864]
[1744530716686,12.59974272,1613.8,1613.5,5.961]
[1744530717005,0.7837,1613.7,1613.5,5.961]
[1744530717309,0.20621303,1613.6,1613.4,15.72923585]
[1744530717504,0.20621303,1613.6,1613.4,9.65925105]
[1744530717714,0.7837,1613.7,1613.4,9.65925105]
[1744530717874,0.20614817,1613.5,1613.4,9.65925105]
[1744530718068,0.7837,1613.7,1613.4,11.33680561]
[1744530718272,0.20614817,1613.5,1613.4,9.65925105]
[1744530718504,0.7837,1613.7,1613.4,9.65925105]
[1744530718709,0.20614817,1613.5,1613.4,9.65925105]
[1744530718905,0.7837,1613.7,1613.4,9.65925105]
[1744530719114,0.20614817,1613.5,1613.3,6.19844]
[1744530719309,6.19748,1613.6,1613.3,6.19844]
[1744530719614,6.19748,1613.6,1613.3,9.19844]
[1744530719788,0.20614817,1613.5,1613.3,9.19844]
[1744530720493,2.3,1613.4,1613.3,9.19844]
[1744530720876,2.5060833,1613.4,1613.3,9.19844]
[1744530721798,2.5060833,1613.4,1613.3,13.02188024]
[1744530722014,2.5060833,1613.4,1613.3,13.84108024]
[1744530722181,0.2060833,1613.4,1613.3,13.84108024]
[1744530722381,6.19617,1613.9,1613.6,6.19729]
[1744530722622,2.50634272,1613.8,1613.6,6.19729]
[1744530724030,2.50634272,1613.8,1613.5,8.40051524]
[1744530724236,9.47338272,1613.8,1613.5,8.40051524]
[1744530725134,9.47338272,1613.8,1613.5,6.19769]
[1744530725497,11.04033799,1613.8,1613.5,6.19769]
[1744530725824,2.50634272,1613.8,1613.5,12.39525]
[1744530726634,0.20634272,1613.8,1613.7,3.03052524]
[1744530726935,7.0227,1614.1,1613.7,3.03052524]
[1744530726936,13.21833,1614.1,1613.7,9.22721524]